{"text_format":"1","workbook":"xlsx","n_sheets":6,"sheets":["Main","Trades","MM","Settlement","Setting","Sheet1"],"not_rendered":{"charts":0,"images":1,"macros":1,"external_links":0,"defined_names":31,"comments":2,"pivot_tables":0},"unopened":[],"bounds":{"document_bytes":16777216,"sheet_cells":100000,"rows_first":2000,"rows_last":500,"rows_between":2000,"halvings":0,"cell_chars":16384,"cell_head_chars":4096},"cells_cut":0,"cells_raw":0,"read":"whole","date_system":"1900"}

{"sheet":"Main","index":0,"n_rows":22,"n_cols":12,"rows_kept":22,"cut":false,"hidden":false,"merged":[[4,1,4,11],[9,5,9,6],[10,5,10,6],[21,5,21,6]]}
[]
[]
[]
[]
[null,"DEUTSCHE UPLOAD"]
[]
[null,null,null,null,null,null,null,null,null,null,null,"Note:"]
[null,null,"Report Details:"]
[null,null,null,null,null,null,null,null,null,null,null,"1. Press Login to connect to database"]
[null,null,null,null,"Company Name:","BIMB Investment Management Berhad",null,null,null,null,null,"2. Select Fund Group Code and Value Date, then click on the button Import to import data."]
[null,null,null,null,"Company ID:","BI",null,null,null,null,null,"3. Click on Generate CSV button to export the selected sheet(s) to CSV format."]
[null,null,null,null,null,null,null,null,null,null,null,"4. For NEW Portfolio Code, NEW Broker and NEW Money Market Placement Bank setting, click on Setting button."]
[null,null,null,null,"Fund Group:","BIW"]
[null,null,null,null,"Value Date:","2018-03-09"]
[null,null,null,null,"Office:","Front Office"]
[]
[null,null,null,null,null,"Sheet Name","Export","Range"]
[null,null,null,null,"Export Files:","Trades","Yes","D2:CE"]
[null,null,null,null,null,"MM","Yes","C2:CB"]
[null,null,null,null,null,"Settlement","Yes","A2:FS"]
[]
[null,null,null,null,"Export Path:","C:\\Program Files\\OnePortFolio\\Report"]

{"sheet":"Trades","index":1,"n_rows":2,"n_cols":83,"rows_kept":2,"cut":false,"hidden":false,"merged":[]}
[null,null,null,null,null,{"$f":"VLOOKUP(A1,OthTradeSetting,3,0) & RIGHT(AE1,2) &CHOOSE(MID(AE1,5,2),\"JAN\",\"FEB\",\"MAR\",\"APR\",\"MAY\",\"JUN\",\"JUL\",\"AUG\",\"SEP\",\"OCT\",\"NOV\",\"DEC\") & \"-\" & ROW()-2","v":{"$error":"#N/A"}},null,null,null,null,null,{"$f":"IF(OR(C1=\"SP\",C1=\"SS\"),VLOOKUP(A1,OthTradeSetting,2,0),\"\")","v":""},{"$f":"IF(H1<>\"C\",VLOOKUP(A1,PortfolioCodeRange,2,0),\"\")","v":{"$error":"#N/A"}},null,null,null,null,null,null,{"$f":"IF(H1<>\"C\",VLOOKUP(B1,TradeCPCodeRange,3,0),\"\")","v":{"$error":"#N/A"}},null,{"$f":"IF(H1<>\"C\",VLOOKUP(B1,TradeCPCodeRange,4,0),\"\")","v":{"$error":"#N/A"}},{"$f":"IF(OR(C1=\"SP\",C1=\"SS\"),VLOOKUP(B1&BP1,CounterPartyBICRange,2,0),\"\")","v":""},null,null,null,null,null,null,null,null,null,null,null,null,null,null,null,null,null,null,null,null,null,null,null,null,null,null,null,null,null,null,null,null,null,null,null,null,null,null,null,null,null,null,{"$f":"IF(OR(C1=\"SP\",C1=\"SS\"),VLOOKUP(BP1,PSET.Data,2,0),\"\")","v":""}]
["qFundCode","qCPCode","qTrnCode","Receiver BIC","Action","Client Reference","Previous Reference No.","Trade Type","Transaction Type","Instrument Type","Blank Column","Securities Account no","FA Portfolio Code","Security Identifier Type","Local_Security_Code","ISIN","Security Description","Blank Column","FA Broker Identifier Type","FA Broker Code","FA Counterparty Identifier Type","FA Counterparty Code","Counterparty BIC","Counterparty Description","Counterparty Account","Buyer/Seller BIC","Buyer/Seller Description","Buyer/Seller Account","Blank Column","Blank Column","Trade Date","Settlement Date"," Quantity ","Deal Price CCY","Deal Price","Gross Amount","Accrued Interest","Blank Column","Blank Column","Blank Column","Stamp Duty","Clearing Fee","Other Fee","Broker Commission","Sales Tax","Levy","GST Brokerage","GST Clearing","GST Scanning","GST Transaction","CDS Fees","CSE Fees","GOVT Cess","SEC Cess","SCCP","Bought Accrued Interest","AR-BIR CB Tax","Prepaid Tax Discount","Prepaid Tax Premium","Witholding Tax on SDA ACC Int","Blank Column","Blank Column","Blank Column","Blank Column","Blank Column","PSET","PSAFE","Settlement CCY","Settlement Amount","Blank Column","Blank Column","Narrative Line 1","Narrative Line 2","Narrative Line 3","Narrative Line 4","Registration Narrative","Blank Column","Blank Column","Blank Column","Blank Column","Blank Column","Blank Column","End_of_Line_Indicator"]

{"sheet":"MM","index":2,"n_rows":4,"n_cols":80,"rows_kept":4,"cut":false,"hidden":false,"merged":[]}
[null,null,null,null,null,null,null,null,null,null,null,{"$f":"VLOOKUP(A1,PortfolioCodeRange,2,0)","v":{"$error":"#N/A"}},null,null,null,null,null,null,null,{"$f":"MM_FABrokerIdenType","v":"BIC_CODE"},{"$f":"VLOOKUP(B1,CashCPRange,5,0)","v":{"$error":"#N/A"}},{"$f":"MM_FACPIdenType","v":"BIC_CODE"},{"$f":"VLOOKUP(B1,CashCPRange,4,0)","v":{"$error":"#N/A"}}]
["qFundCode","qCPCode","Receiver BIC","Action","Client Reference","Previous Reference No.","Trade Type","Transaction Type","Instrument Type","Blank Column","Portfolio Group","FA Portfolio Code","Security Identifier Type","Local_Security_Code","ISIN","Security Description","Bank code","Blank Column","Blank Column","FA Broker Identifier Type","FA Broker Code","FA Counterparty Identifier Type","FA Counterparty Code","Blank Column","Blank Column","Trade Date","Settlement Date","Maturity Date","Quantity / Principal","Deal Price CCY","Deal Price","Gross Amount","Spot Rate","Forward Rate","BUY_CRNCY","SAL_CRNCY","BUY_AMT","SAL_AMT","Interest Rate","Interest Payment Frequency","Blank Column","Shariah Deposit","Interest type","Blank Column","BROKERAGE COMMISION","FUND ISSUE / REDEMPTION CHARGES","WITHOLDING TAX","DISTRIBUTION FEES PAYABLE","LOAD CHARGES","Equalization","Earn Resign (Paid to company)","Earnings Company - Resign (To Member)","COM-TRANS FROM OTHER FUND","COM-TRANS TO OTHER FUND","Donation","Switching In Fee","UNIT PREMIUM","Premium","Security transaction tax","Transaction Fee","Stamp duty","STP CHARGES ","Clearing Fee","Expense Fee","VAT","Retained Earnings","Capital gain/loss","Other Fee","Bank Charges","Blank Column","Blank Column","Blank Column","Blank Column","Exchange","Settlement CCY","Settlement Amount","Blank Column","Narrative Line 1 ","Narrative Line 2","End_of_Line_Indicator"]
["BIW","MBSB","ReceiverBIC","NEWM","CSH180300261",null,null,1,"T",null,"MY_BIMB","BIW123",null,null,null,null,null,null,null,"BIC_CODE","123MBSB","BIC_CODE","MBSB123",null,null,20180309,20180309,20180313,28000000,"MYR",null,28000000,null,null,null,null,null,null,3.05,null,null,null,null,null,null,null,null,null,null,null,null,null,null,null,null,null,null,null,null,null,null,null,null,null,null,null,null,null,null,null,null,null,null,null,null,null,null,null,null,"End"]
["BIW","BISLAM","ReceiverBIC","NEWM","CSH180300262",null,null,1,"T",null,"MY_BIMB","BIW123",null,null,null,null,null,null,null,"BIC_CODE","123IS","BIC_CODE","IS123",null,null,20180309,20180309,20180313,75052503,"MYR",null,75052503,null,null,null,null,null,null,3.15,null,null,null,null,null,null,null,null,null,null,null,null,null,null,null,null,null,null,null,null,null,null,null,null,null,null,null,null,null,null,null,null,null,null,null,null,null,null,null,null,"End"]

{"sheet":"Settlement","index":3,"n_rows":4,"n_cols":175,"rows_kept":4,"cut":false,"hidden":false,"merged":[]}
[]
["Order Party Account","Quotation Currency","Account for Charges","Quotation Currency","Default REN","Default Blank","Default N","Default Blank","Trade Date dd.mm.yyyy","Default Blank","Default Blank","Default Blank","Default Blank","Default Blank","Default 15","Default Blank","Default Blank","Default Blank","Default Blank","Default Blank","Default Blank","Default Blank","Default Blank","Default Blank","Default Blank","Default Blank","Default Blank","Default Blank","Default Blank","Current Value PC","Default Blank","Default Blank","Default Blank","Default Blank","Quotation Currency","Default Blank","Tran No","Reference Number","Default Blank","Default Blank","Default Blank","Default Blank","Default Blank","Default Blank","Default Blank","Tran No","Default Blank","Default Blank","Default Blank","Default Blank","Default Blank","Default Blank","Default Blank","Default Blank","Default Blank","Default Blank","Default Blank","Benificiary Code as per DBDI","Benificiary Name - Fund Name","Default Blank","Default Blank","Default Blank","Default Blank","Default Blank","Default Blank","Default Blank","Default Blank","Default Blank","Default Blank","Default Blank","Default Blank","Default Blank","Default Blank","Default Blank","Default Blank","Default Blank","Default Blank","Default Blank","Default Blank","Default Blank","Default Blank","Default Blank","Default Blank","Default Blank","Bank Account No for Beneficiary","Default Blank","Benificiary Bank Name","Default Blank","Default Blank","Beneficiary Swift Code (w/o XXX)","To Confirm - Counter Party Bank Clearing Type","Benificiary Bank Swift Code","Default Blank","Default Blank","Default Blank","Default Blank","Default Blank","Default Blank","Default Blank","Default Blank","Default Blank","Default Blank","Default Blank","Default Blank","Default Blank","Default Blank","Default Blank","Default Blank","Benificiary Name - Fund Name","Benificiary Address 1","Benificiary Address 2","Benificiary Address 3","Benificiary Address 4","Default Blank","To Confirm - Payment Method","Default Blank","Default Blank","Default Blank","Default Blank","Default Blank","Default Blank","Default Blank","Default Blank","Default Blank","Default Blank","Default Blank","Default Blank","Default Blank","Full Narration ","Full Narration (Continued)","Default Blank","Default Blank","Default Blank","Full Narration ","Narration","Default Blank","Default Blank","Default Blank","Default Blank","Default Blank","Default Blank","Default Blank","Default Blank","Default Blank","Default Blank","Default Blank","Default Blank","Default Blank","Default Blank","Default Blank","Default Blank","Default Blank","Default Blank","Default Blank","Default Blank","Default Blank","Default Blank","Default Blank","Default Blank","Default Blank","Default Blank","Default Blank","Default Blank","Default Blank","Default Blank","Default Blank","Default Blank","Default Blank","Default Blank","Default Blank","Default Blank","Default Blank","Default Blank","Default Blank","Default Blank"]
["BANK ISLAM","MYR","BANK ISLAM","MYR","REN",null,"MY-BIMB",null,"09.03.2018",null,null,null,null,null,15,null,null,null,null,null,null,null,null,null,null,null,null,null,null,75047826.219999999,null,null,null,null,"MYR",null,"CSH*180300249","CSH*180300249",null,null,null,null,null,null,null,"CSH*180300249",null,null,null,null,null,null,null,null,null,null,null,null,"DTMB FOR BIMB Invest Wafiyah",null,null,null,null,null,null,null,null,null,null,null,null,null,null,null,null,null,null,null,null,null,null,null,null,null,null,null,"BANK ISLAM MALAYSIA BERHAD",null,null,"N/A","25-5","N/AXXX",null,null,null,null,null,null,null,null,null,null,null,null,null,null,null,null,"DTMB FOR BIMB Invest Wafiyah",null,null,null,null,null,6,null,null,null,null,null,null,null,null,null,null,null,null,null,"PLACEMENT FROM DTMB FOR BIMB Invest Wafiyah"," FOR 09.03.2018",null,null,null,"PLACEMENT FROM DTMB FOR BIMB Invest Wafiyah ACC NO BANK ISLAM"]
["BANK ISLAM","MYR","BANK ISLAM","MYR","REN",null,"MY-BIMB",null,"09.03.2018",null,null,null,null,null,15,null,null,null,null,null,null,null,null,null,null,null,null,null,null,28004679.449999999,null,null,null,null,"MYR",null,"CSH*180300248","CSH*180300248",null,null,null,null,null,null,null,"CSH*180300248",null,null,null,null,null,null,null,null,null,null,null,null,"DTMB FOR BIMB Invest Wafiyah",null,null,null,null,null,null,null,null,null,null,null,null,null,null,null,null,null,null,null,null,null,null,null,null,null,null,null,"MBSB",null,null,"N/A","25-5","N/AXXX",null,null,null,null,null,null,null,null,null,null,null,null,null,null,null,null,"DTMB FOR BIMB Invest Wafiyah",null,null,null,null,null,6,null,null,null,null,null,null,null,null,null,null,null,null,null,"PLACEMENT FROM DTMB FOR BIMB Invest Wafiyah"," FOR 09.03.2018",null,null,null,"PLACEMENT FROM DTMB FOR BIMB Invest Wafiyah ACC NO BANK ISLAM"]

{"sheet":"Setting","index":4,"n_rows":100,"n_cols":36,"rows_kept":100,"cut":false,"hidden":false,"merged":[[1,4,1,5]]}
[null,null,null,null,"TRADE SETTING",null,null,null,"PORTFOLIO CODE","PORTFOLIO CODE END",null,"MM CP SETTING",null,null,null,"MM CP SETTING END",null,"TRADE CP SETTING",null,null,"TRADE CP SETTING END",null,"FUND GROUP SDF","FUND GROUP SDF END",null,null,null,null,null,"PSET TRADE SETTING","PSET TRADE SETTING END",null,"COUNTERPARTY BIC",null,null,"COUNTERPARTY BIC END"]
[null,null,null,null,"GENERAL TRADE/MM SETTING",null,null,null,"PORTFOLIO CODE",null,null,"MM CP SETTING",null,null,null,null,null,"FA CP/BROKER CODE",null,null,null,null,"FUND GROUP SDF",null,null,"TRADE SETTING BY PORTFOLIO",null,null,null,"PSET TRADE SETTING",null,null,"Counterparty BIC"]
[null,null,null,null,"No.","Field Name","Default Value",null,"OnePortfolio Fund Code","FA Portfolio Code",null,"CP Code","CP Name","Account No.","Counterparty","Broker",null,"Trade CP Code","CP Name","FA Broker Code","FA Counterparty Code",null,"Fund Group Code","Fund Group Name",null,"Fund Code","Securities Acc No","Client Reference",null,"Currency Code","PSET",null,"qCPCode","Currency Code","LookUp","COUNTERPARTY BIC"]
[null,null,null,null,1,"Company Local Currency",null,null,"BAPAC","BAPAC",null,"ABBB","ABBB",null,null,null,null,"BR:AFFINV","Affin Investment Bank Berhad","BVMSEFAFF","BVMSEFAFFINV",null,"ALLFUNDS","ALLFUNDS",null,"BAPAC",null,null,null,"AED",null,null,"BR:AFFINV","MYR",{"$f":"IF(OR(AG4=\"\",AH4=\"\"),\"\",AG4&AH4)","v":"BR:AFFINVMYR"},"HDSBMY2PXXXX"]
[null,null,null,null,2,null,null,null,"BICMF","BICMF",null,"AFBB","Asian Finance Bank Berhad",null,null,null,null,"BR:ALLIANCEINVT","ALLIANCE INVESTMENT BANK BERHAD","BIMB007","BVMSEFALLIANCEINVT",null,"BAPAC","BIMB-Arabesque Asia Pacific Shariah-ESG Equity Fund",null,"BICMF",null,null,null,"AUD","ACLRAU2S",null,"BR:ALLIANCEINVT","MYR","BR:ALLIANCEINVTMYR","MBAMMYKLXXX"]
[null,"Legends",null,null,3,null,null,null,"BICMF3","BICMF3",null,"AFFISL","Affin Islamic Bank Berhad",null,null,null,null,"BR:AmINV","AmInvestment Bank Berhad","BD20007","BVMSEFAmINV",null,"BICMF","BIMB I Cash Management Fund",null,"BICMF3",null,null,null,"CAD",null,null,"BR:AmINV","MYR","BR:AmINVMYR","AMMBMYKLXXX"]
[null,null,"User Key In",null,4,null,null,null,"BIMMF","BIMMF",null,"ALLISB","ALLIANCE ISLAMIC BANK BERHAD",null,null,null,null,"BR:BIMBSEC","BIMB Securities Sdn Bhd","INSBIMB04","BVMSEFBIMBSEC",null,"BICMF3","BICMF3",null,"BIMMF",null,null,null,"CHF",null,null,"BR:BIMBSEC","MYR","BR:BIMBSECMYR","BSDBMYK1XXX"]
[null,null,"Downloaded Data",null,5,null,null,null,"BIW","BIW123",null,"ALRAJ","Al Rajhi Banking & Investment Corporation (M) Berhad",null,null,null,null,"BR:CIMBINV","CIMB Investment Bank Berhad","0E3246 ","BVMSEFCIMBINV",null,"BIMMF","BIMB Invest Money Market Fund",null,"BIW",null,null,null,"CNY",null,null,"BR:CIMBINV","MYR","BR:CIMBINVMYR","COIMMYKLXXX"]
[null,null,null,null,null,"Trades Setting",null,null,"BMSEF","BMSEF",null,"AMISLB","AMISLAMIC BANK BERHAD",null,null,null,null,"BR:HLINV","Hong Leong Investment Bank Berhad","4OB0018R","BVMSEFHLINV",null,"BIW","BIMB INVEST WAFIYAH",null,"BMSEF",null,null,null,"DKK",null,null,"BR:HLINV","MYR","BR:HLINVMYR","HLIVMYKLXXX"]
[null,"Go To",null,null,1,"Receiver BIC","DEUTMYKLXXX",null,"GD1","GD1",null,"AXIATA","AXIATA",null,null,null,null,"BR:KAF-Seagroatt","KAF-Seagroatt & Campbell Securities Sdn. Bhd","BI042","BVMSEFKAF-Seagroatt",null,"BMSEF","BIMB-Arabesque Malaysia Shariah-ESG Equity Fund",null,"GD1","4001152-4001",null,null,"EUR",null,null,"BR:KAF-Seagroatt","MYR","BR:KAF-SeagroattMYR","SEACMYK1XXX"]
[null,null,"General Trade Setting",null,2,"Security Identifier Code (Local)","MY_REUTERS",null,"GD1RM","GD1RM",null,"BISLAM","BANK ISLAM MALAYSIA BERHAD",null,"IS123","123IS",null,"BR:KENANGA","Kenanga Investment Bank Berhad","BVMSEFKEN","BVMSEFKENANGA",null,"EQTFUND","Funds Invest in Equity",null,"IB",null,null,null,"GBP",null,null,"BR:KENANGA","MYR","BR:KENANGAMYR","KKENMYK1XXX"]
[null,null,null,null,3,"Security Identifier Code (Foreign)","MY_REUTERS",null,"IB","IB",null,"BKRM","Bank Kerjasama Rakyat Malaysia Berhad",null,null,null,null,"BR:MACSEC","Macquarie Capital Securities (Malaysia) Sdn Bhd","10951/9","BVMSEFMACSEC",null,"Foreign Fund","Foreign Fund",null,"ID",null,null,null,"HKD","HKMAHKHC",null,"BR:MACSEC","MYR","BR:MACSECMYR","MACQMYK1XXX"]
[null,null,"Portfolio Code Setting",null,4,"FA Broker Identifier Type","CLIENT_BROKER_CODE",null,"ID","ID",null,"BMMB","BANK MUAMALAT MALAYSIA BHD",null,null,null,null,"BR:MBBINV","Maybank Investment Bank Berhad","AL155856 ","BVMSEFMBBINV",null,"GD1","BIMB i Global Dividend Fund 1",null,"IF",null,null,null,"IDR",null,null,"BR:MBBINV","MYR","BR:MBBINVMYR","MBEAMYKLXXX"]
[null,null,null,null,5,"FA Counterparty Identifier Type","CLIENT_BROKER_CODE",null,"IF","IF",null,"BSN","Bank Simpanan Nasional Berhad",null,null,null,null,"BR:MIDFAMANAH","MIDF Amanah Investment Bank Berhad","BIS0008","BVMSEFMIDFAMANAH",null,"GD1RM","BIMB i Global Dividend Fund 1 (MYR)",null,"IP",null,null,null,"INR",null,null,"BR:MIDFAMANAH","MYR","BR:MIDFAMANAHMYR","MIDFMYK1XXX"]
[null,null,"MM CP Setting",null,6,null,null,null,"IP","IP",null,"CIMBIS","CIMB Islamic Bank Berhad",null,null,null,null,"BR:PBBINV","Public Investment Bank Berhad","BVMSEFPBB","BVMSEFPBBINV",null,"IB","BIMB Dana Al-Fakhim",null,"IS",null,null,null,"JPY","JJSDJPJT",null,"BR:OSKINV","MYR","BR:OSKINVMYR","OSKIMYKLXXX"]
[null,null,null,null,7,null,null,null,"IS","IS123",null,"CMSB","CMSB",null,null,null,null,"BR:RHBINV","RHB Investment Bank Berhad",880125,"BVMSEFRHBINV",null,"ID","BIMB Dana Al-Falah",null,"TP",null,null,null,"KRW","KSDCKRSE",null,"BR:PBBINV","MYR","BR:PBBINVMYR","SMBBMYK1XXX"]
[null,null,"Trade CP Setting",null,8,null,null,null,"TP","TP",null,"HLBB","HONG LEONG BANK BERHAD",null,null,null,null,"BR:TASEC","TA Securities Holdings Berhad",211100,"BVMSEFTASEC",null,"IF","BIMB I Flexi Fund",null,"BVMSEF","04001335-4001",null,null,"MYR","MCDSMYK1XXX",null,"BR:RHBINV","MYR","BR:RHBINVMYR","OSKIMYKLXXX"]
[null,null,null,null,9,null,null,null,"BVMSEF","BVMSEF",null,"HLISLA","HONG LEONG ISLAMIC BANK BERHAD",null,null,null,null,"N/A","Not Applicable",null,null,null,"IP","BIMB I Dividend Fund",null,null,null,null,null,"NOK",null,null,"BR:RHBSECHK","MYR","BR:RHBSECHKMYR","OSKSHKH1XXX"]
[null,null,"Trade Setting By Portfolio",null,10,null,null,null,null,null,null,"KAFINV","KAF INVESTMENT BANK BHD                                                         ",null,null,null,null,null,null,null,null,null,"IS","BIMB Dana Al-Munsif",null,null,null,null,null,"NZD","RBNZNZ22",null,"BR:TASEC","MYR","BR:TASECMYR","BOTLMY21XXX"]
[null,null,null,null,11,null,null,null,null,null,null,"KFH","Kuwait Finance House (Malaysia) Berhad",null,null,null,null,null,null,null,null,null,"TP","BIMB I Growth",null,null,null,null,null,"PHP","BUTRPHM1",null,null,null,""]
[null,null,"PSET Trade Setting",null,12,null,null,null,null,null,null,"MBBISL","Maybank Islamic  Berhad",null,"MBBISL123","123MBBISL",null,null,null,null,null,null,"BVMSEF","BIMB-Arabesque Valuecap Malaysia Shariah-ESG Equity Fund",null,null,null,null,null,"SEK",null,null,null,null,{"$f":"IF(OR(AG21=\"\",AH21=\"\"),\"\",AG21&AH21)","v":""}]
[null,null,null,null,13,null,null,null,null,null,null,"MBSB","MBSB",null,"MBSB123","123MBSB",null,null,null,null,null,null,"UTFUND","Unit Trust Funds",null,null,null,null,null,"SGD","CDPLSGSG",null,null,null,""]
[null,null,null,null,14,null,null,null,null,null,null,"MIDF","MIDF AMANAH INVESTMENT BANK BHD SPI",null,null,null,null,null,null,null,null,null,null,null,null,null,null,null,null,"THB","TSDCTHBK",null,null,null,""]
[null,null,null,null,15,null,null,null,null,null,null,"NAIM","NAIM",null,null,null,null,null,null,null,null,null,null,null,null,null,null,null,null,"TWD","CBCTTWTP",null,null,null,""]
[null,null,null,null,null,"Money Market Setting",null,null,null,null,null,"OCBCAL","OCBC Al-Amin Bank Berhad",null,null,null,null,null,null,null,null,null,null,null,null,null,null,null,null,"USD",null,null,null,null,""]
[null,null,null,null,1,"Receiver BIC","DEUTMYKLDFS",null,null,null,null,"OSKINVEST","OSKINVEST",null,null,null,null,null,null,null,null,null,null,null,null,null,null,null,null,"VND",null,null,null,null,""]
[null,null,null,null,2,"Portfolio Group","MY_BIMB",null,null,null,null,"PBISLA","PUBLIC ISLAMIC BANK BERHAD                                                      ",null,null,null,null,null,null,null,null,null,null,null,null,null,null,null,null,null,null,null,null,null,""]
[null,null,null,null,3,"FA Broker Identifier Type","BIC_CODE",null,null,null,null,"RHBISL","RHB ISLAMIC BANK BHD                                                            ",null,null,null,null,null,null,null,null,null,null,null,null,null,null,null,null,null,null,null,null,null,""]
[null,null,null,null,4,"FA Counterparty Identifier Type","BIC_CODE",null,null,null,null,"S_BISLAM","BANK ISLAM MALAYSIA BERHAD",null,null,null,null,null,null,null,null,null,null,null,null,null,null,null,null,null,null,null,null,null,""]
[null,null,null,null,5,null,null,null,null,null,null,"S_CIMBIS","CIMB Islamic Bank Berhad",null,null,null,null,null,null,null,null,null,null,null,null,null,null,null,null,null,null,null,null,null,""]
[null,null,null,null,6,null,null,null,null,null,null,"S_MBBISL","Maybank Islamic  Berhad",null,null,null,null,null,null,null,null,null,null,null,null,null,null,null,null,null,null,null,null,null,""]
[null,null,null,null,7,null,null,null,null,null,null,"STDSAADIQ","STANDARD CHARTERED SAADIQ                                                       ",null,null,null,null,null,null,null,null,null,null,null,null,null,null,null,null,null,null,null,null,null,""]
[null,null,null,null,8,null,null,null,null,null,null,null,null,null,null,null,null,null,null,null,null,null,null,null,null,null,null,null,null,null,null,null,null,null,""]
[null,null,null,null,9,null,null,null,null,null,null,null,null,null,null,null,null,null,null,null,null,null,null,null,null,null,null,null,null,null,null,null,null,null,""]
[null,null,null,null,10,null,null,null,null,null,null,null,null,null,null,null,null,null,null,null,null,null,null,null,null,null,null,null,null,null,null,null,null,null,""]
[null,null,null,null,11,null,null,null,null,null,null,null,null,null,null,null,null,null,null,null,null,null,null,null,null,null,null,null,null,null,null,null,null,null,""]
[null,null,null,null,12,null,null,null,null,null,null,null,null,null,null,null,null,null,null,null,null,null,null,null,null,null,null,null,null,null,null,null,null,null,""]
[null,null,null,null,13,null,null,null,null,null,null,null,null,null,null,null,null,null,null,null,null,null,null,null,null,null,null,null,null,null,null,null,null,null,""]
[null,null,null,null,14,null,null,null,null,null,null,null,null,null,null,null,null,null,null,null,null,null,null,null,null,null,null,null,null,null,null,null,null,null,""]
[null,null,null,null,15,null,null,null,null,null,null,null,null,null,null,null,null,null,null,null,null,null,null,null,null,null,null,null,null,null,null,null,null,null,""]
[null,null,null,null,null,null,null,null,null,null,null,null,null,null,null,null,null,null,null,null,null,null,null,null,null,null,null,null,null,null,null,null,null,null,""]
[null,null,null,null,null,null,null,null,null,null,null,null,null,null,null,null,null,null,null,null,null,null,null,null,null,null,null,null,null,null,null,null,null,null,""]
[null,null,null,null,null,null,null,null,null,null,null,null,null,null,null,null,null,null,null,null,null,null,null,null,null,null,null,null,null,null,null,null,null,null,""]
[null,null,null,null,null,null,null,null,null,null,null,null,null,null,null,null,null,null,null,null,null,null,null,null,null,null,null,null,null,null,null,null,null,null,""]
[null,null,null,null,null,null,null,null,null,null,null,null,null,null,null,null,null,null,null,null,null,null,null,null,null,null,null,null,null,null,null,null,null,null,""]
[null,null,null,null,null,null,null,null,null,null,null,null,null,null,null,null,null,null,null,null,null,null,null,null,null,null,null,null,null,null,null,null,null,null,""]
[null,null,null,null,null,null,null,null,null,null,null,null,null,null,null,null,null,null,null,null,null,null,null,null,null,null,null,null,null,null,null,null,null,null,""]
[null,null,null,null,null,null,null,null,null,null,null,null,null,null,null,null,null,null,null,null,null,null,null,null,null,null,null,null,null,null,null,null,null,null,""]
[null,null,null,null,null,null,null,null,null,null,null,null,null,null,null,null,null,null,null,null,null,null,null,null,null,null,null,null,null,null,null,null,null,null,""]
[null,null,null,null,null,null,null,null,null,null,null,null,null,null,null,null,null,null,null,null,null,null,null,null,null,null,null,null,null,null,null,null,null,null,""]
[null,null,null,null,null,null,null,null,null,null,null,null,null,null,null,null,null,null,null,null,null,null,null,null,null,null,null,null,null,null,null,null,null,null,""]
[null,null,null,null,null,null,null,null,null,null,null,null,null,null,null,null,null,null,null,null,null,null,null,null,null,null,null,null,null,null,null,null,null,null,""]
[null,null,null,null,null,null,null,null,null,null,null,null,null,null,null,null,null,null,null,null,null,null,null,null,null,null,null,null,null,null,null,null,null,null,""]
[null,null,null,null,null,null,null,null,null,null,null,null,null,null,null,null,null,null,null,null,null,null,null,null,null,null,null,null,null,null,null,null,null,null,""]
[null,null,null,null,null,null,null,null,null,null,null,null,null,null,null,null,null,null,null,null,null,null,null,null,null,null,null,null,null,null,null,null,null,null,""]
[null,null,null,null,null,null,null,null,null,null,null,null,null,null,null,null,null,null,null,null,null,null,null,null,null,null,null,null,null,null,null,null,null,null,""]
[null,null,null,null,null,null,null,null,null,null,null,null,null,null,null,null,null,null,null,null,null,null,null,null,null,null,null,null,null,null,null,null,null,null,""]
[null,null,null,null,null,null,null,null,null,null,null,null,null,null,null,null,null,null,null,null,null,null,null,null,null,null,null,null,null,null,null,null,null,null,""]
[null,null,null,null,null,null,null,null,null,null,null,null,null,null,null,null,null,null,null,null,null,null,null,null,null,null,null,null,null,null,null,null,null,null,""]
[null,null,null,null,null,null,null,null,null,null,null,null,null,null,null,null,null,null,null,null,null,null,null,null,null,null,null,null,null,null,null,null,null,null,""]
[null,null,null,null,null,null,null,null,null,null,null,null,null,null,null,null,null,null,null,null,null,null,null,null,null,null,null,null,null,null,null,null,null,null,""]
[null,null,null,null,null,null,null,null,null,null,null,null,null,null,null,null,null,null,null,null,null,null,null,null,null,null,null,null,null,null,null,null,null,null,""]
[null,null,null,null,null,null,null,null,null,null,null,null,null,null,null,null,null,null,null,null,null,null,null,null,null,null,null,null,null,null,null,null,null,null,""]
[null,null,null,null,null,null,null,null,null,null,null,null,null,null,null,null,null,null,null,null,null,null,null,null,null,null,null,null,null,null,null,null,null,null,""]
[null,null,null,null,null,null,null,null,null,null,null,null,null,null,null,null,null,null,null,null,null,null,null,null,null,null,null,null,null,null,null,null,null,null,""]
[null,null,null,null,null,null,null,null,null,null,null,null,null,null,null,null,null,null,null,null,null,null,null,null,null,null,null,null,null,null,null,null,null,null,""]
[null,null,null,null,null,null,null,null,null,null,null,null,null,null,null,null,null,null,null,null,null,null,null,null,null,null,null,null,null,null,null,null,null,null,""]
[null,null,null,null,null,null,null,null,null,null,null,null,null,null,null,null,null,null,null,null,null,null,null,null,null,null,null,null,null,null,null,null,null,null,""]
[null,null,null,null,null,null,null,null,null,null,null,null,null,null,null,null,null,null,null,null,null,null,null,null,null,null,null,null,null,null,null,null,null,null,{"$f":"IF(OR(AG69=\"\",AH69=\"\"),\"\",AG69&AH69)","v":""}]
[null,null,null,null,null,null,null,null,null,null,null,null,null,null,null,null,null,null,null,null,null,null,null,null,null,null,null,null,null,null,null,null,null,null,""]
[null,null,null,null,null,null,null,null,null,null,null,null,null,null,null,null,null,null,null,null,null,null,null,null,null,null,null,null,null,null,null,null,null,null,""]
[null,null,null,null,null,null,null,null,null,null,null,null,null,null,null,null,null,null,null,null,null,null,null,null,null,null,null,null,null,null,null,null,null,null,""]
[null,null,null,null,null,null,null,null,null,null,null,null,null,null,null,null,null,null,null,null,null,null,null,null,null,null,null,null,null,null,null,null,null,null,""]
[null,null,null,null,null,null,null,null,null,null,null,null,null,null,null,null,null,null,null,null,null,null,null,null,null,null,null,null,null,null,null,null,null,null,""]
[null,null,null,null,null,null,null,null,null,null,null,null,null,null,null,null,null,null,null,null,null,null,null,null,null,null,null,null,null,null,null,null,null,null,""]
[null,null,null,null,null,null,null,null,null,null,null,null,null,null,null,null,null,null,null,null,null,null,null,null,null,null,null,null,null,null,null,null,null,null,""]
[null,null,null,null,null,null,null,null,null,null,null,null,null,null,null,null,null,null,null,null,null,null,null,null,null,null,null,null,null,null,null,null,null,null,""]
[null,null,null,null,null,null,null,null,null,null,null,null,null,null,null,null,null,null,null,null,null,null,null,null,null,null,null,null,null,null,null,null,null,null,""]
[null,null,null,null,null,null,null,null,null,null,null,null,null,null,null,null,null,null,null,null,null,null,null,null,null,null,null,null,null,null,null,null,null,null,""]
[null,null,null,null,null,null,null,null,null,null,null,null,null,null,null,null,null,null,null,null,null,null,null,null,null,null,null,null,null,null,null,null,null,null,""]
[null,null,null,null,null,null,null,null,null,null,null,null,null,null,null,null,null,null,null,null,null,null,null,null,null,null,null,null,null,null,null,null,null,null,""]
[null,null,null,null,null,null,null,null,null,null,null,null,null,null,null,null,null,null,null,null,null,null,null,null,null,null,null,null,null,null,null,null,null,null,""]
[null,null,null,null,null,null,null,null,null,null,null,null,null,null,null,null,null,null,null,null,null,null,null,null,null,null,null,null,null,null,null,null,null,null,""]
[null,null,null,null,null,null,null,null,null,null,null,null,null,null,null,null,null,null,null,null,null,null,null,null,null,null,null,null,null,null,null,null,null,null,""]
[null,null,null,null,null,null,null,null,null,null,null,null,null,null,null,null,null,null,null,null,null,null,null,null,null,null,null,null,null,null,null,null,null,null,""]
[null,null,null,null,null,null,null,null,null,null,null,null,null,null,null,null,null,null,null,null,null,null,null,null,null,null,null,null,null,null,null,null,null,null,""]
[null,null,null,null,null,null,null,null,null,null,null,null,null,null,null,null,null,null,null,null,null,null,null,null,null,null,null,null,null,null,null,null,null,null,""]
[null,null,null,null,null,null,null,null,null,null,null,null,null,null,null,null,null,null,null,null,null,null,null,null,null,null,null,null,null,null,null,null,null,null,""]
[null,null,null,null,null,null,null,null,null,null,null,null,null,null,null,null,null,null,null,null,null,null,null,null,null,null,null,null,null,null,null,null,null,null,""]
[null,null,null,null,null,null,null,null,null,null,null,null,null,null,null,null,null,null,null,null,null,null,null,null,null,null,null,null,null,null,null,null,null,null,""]
[null,null,null,null,null,null,null,null,null,null,null,null,null,null,null,null,null,null,null,null,null,null,null,null,null,null,null,null,null,null,null,null,null,null,""]
[null,null,null,null,null,null,null,null,null,null,null,null,null,null,null,null,null,null,null,null,null,null,null,null,null,null,null,null,null,null,null,null,null,null,""]
[null,null,null,null,null,null,null,null,null,null,null,null,null,null,null,null,null,null,null,null,null,null,null,null,null,null,null,null,null,null,null,null,null,null,""]
[null,null,null,null,null,null,null,null,null,null,null,null,null,null,null,null,null,null,null,null,null,null,null,null,null,null,null,null,null,null,null,null,null,null,""]
[null,null,null,null,null,null,null,null,null,null,null,null,null,null,null,null,null,null,null,null,null,null,null,null,null,null,null,null,null,null,null,null,null,null,""]
[null,null,null,null,null,null,null,null,null,null,null,null,null,null,null,null,null,null,null,null,null,null,null,null,null,null,null,null,null,null,null,null,null,null,""]
[null,null,null,null,null,null,null,null,null,null,null,null,null,null,null,null,null,null,null,null,null,null,null,null,null,null,null,null,null,null,null,null,null,null,""]
[null,null,null,null,null,null,null,null,null,null,null,null,null,null,null,null,null,null,null,null,null,null,null,null,null,null,null,null,null,null,null,null,null,null,""]
[null,null,null,null,null,null,null,null,null,null,null,null,null,null,null,null,null,null,null,null,null,null,null,null,null,null,null,null,null,null,null,null,null,null,""]
[null,null,null,null,null,null,null,null,null,null,null,null,null,null,null,null,null,null,null,null,null,null,null,null,null,null,null,null,null,null,null,null,null,null,""]

{"sheet":"Sheet1","index":5,"n_rows":0,"n_cols":0,"rows_kept":0,"cut":false,"hidden":false,"merged":[]}